Cogmind - Beta 15 @@@ ROGUE MODE // 2025.08.23 @ 17:21:52 Player: supraman Result: Destroyed by H0-H4M(g) with Salvaging Laser Performance ------------- Evolutions (0) 0 Regions Visited (3) 600 Robots Destroyed (6) 30 Value Destroyed (128) 128 Prototype IDs (6) 120 Alien Tech Used (0) 0 Bonus (800) 800 TOTAL SCORE: 1678 Bonus ------- Registered with UFD 300 Met Optimus in HQ 500 Cogmind --------- Core Integrity 0/250 Matter 300/300 Energy 100/100 System Corruption 1% Temperature Cool (58) Movement Core (200) Ox3 Location -7/Scraptown Parts ------- > --- POWER (1) -------- (None) > --- PROPULSION (2) --- (None) > --- UTILITY (2) ------ Medium Storage Unit > --- WEAPON (2) ------- Assault Rifle > --- INVENTORY (10) --- Overtuned Titanium Leg Wheel Wheel Compact Wheel Advanced Sensor Array Makeshift Hacking Suite Peak State ------------ > --- POWER ------------ Light Deuterium Engine > --- PROPULSION ------- Compact Wheel Compact Wheel > --- UTILITY ---------- Medium Storage Unit Seismic Detector > --- WEAPON ----------- EM Pulse Gun Small Laser > --- INVENTORY -------- Light Ion Engine Aluminum Leg Wheel Wheel Compact Wheel Compact Wheel Advanced Sensor Array Makeshift Hacking Suite EM Pulse Gun Assault Rifle [Rating: 10] Favorites ----------- Power Light Ion Engine Engine Light Ion Engine Propulsion Compact Wheel Wheel Compact Wheel Utility Seismic Detector Device Seismic Detector Storage Small Storage Unit Weapon Small Laser Energy Gun Small Laser Ballistic Gun Assault Rifle Build | -11 -10 -10 -7 ------- Run | Yrd Mat Sub Scr Slots Evolved . | . . . . Power . | . . . . Propulsion . | . . . . Utility . | . . . . Weapon . | . . . . Parts Attached 15 | 7 . . 8 Power 3 | 1 . . 2 Engine 3 | 1 . . 2 Core . | . . . . Reactor . | . . . . Propulsion 4 | 2 . . 2 Treads . | . . . . Leg . | . . . . Wheel 4 | 2 . . 2 Hover . | . . . . Flight . | . . . . Utility 3 | 2 . . 1 Device 1 | 1 . . . Storage 2 | 1 . . 1 Processor . | . . . . Hackware . | . . . . Protection . | . . . . Artifact . | . . . . Weapon 5 | 2 . . 3 Energy Gun 3 | 1 . . 2 Energy Cannon . | . . . . Ballistic Gun 2 | 1 . . 1 Ballistic Cannon . | . . . . Launcher . | . . . . Special Weapon . | . . . . Impact Weapon . | . . . . Slashing Weapon . | . . . . Piercing Weapon . | . . . . Special Melee Weapon . | . . . . Unidentified Prototypes . | . . . . Parts Lost 9 | . . . 9 Power 2 | . . . 2 Propulsion 3 | . . . 3 Utility 1 | . . . 1 Weapon 3 | . . . 3 Highest Loss Streak 9 | . . . 9 To Critical Strikes . | . . . . Average Backups 7 | 3 8 8 8 Power . | . 1 1 . Propulsion 5 | 1 6 6 5 Utility . | . . . 1 Weapon 1 | . 1 1 1 Tool/Special . | . . . . Unused Backups 8 | . . . 8 Power . | . . . . Propulsion 6 | . . . 6 Utility 2 | . . . 2 Weapon . | . . . . Tool/Special . | . . . . Average Slot Usage (%) 99 | . 100 100 98 Engine 14 | . 14 14 14 Wheel 27 | . 28 28 27 Device 14 | . 14 14 14 Storage 14 | . 14 14 14 Energy Gun 15 | . 14 14 15 Ballistic Gun 12 | . 14 14 11 Peak Build Rating 10 | 7 7 7 10 Average Rating 7 | 5 7 7 7 On Entrance 5 | . 7 7 7 Naked Turns . | . . . . Heaviest Build 19 | 12 12 12 19 Greatest Support 32 | 32 32 32 32 Greatest Overweight (x) . | . . . . Average Overweight (x) . | . . . . Largest Inventory Capacity 10 | 8 8 8 10 Average Capacity 8 | 7 8 8 8 Most Carried 10 | 8 8 8 10 Average Carried 7 | 3 8 8 8 Final Capacity 10 | 8 8 8 10 Final Carried 8 | 8 8 8 6 Class Distribution -------------------- 100% | Mutant Dominant Class ---------------- Mutant | -10/Materials Mutant | -10/Subcaves Mutant | -7/Scraptown Resources | -11 -10 -10 -7 ----------- Run | Yrd Mat Sub Scr Matter Collected 392 | 217 . 77 98 Remotely . | . . . . Salvage Created 343 | 129 . . 214 Parts 17 | 8 . . 9 Haulers Intercepted . | . . . . Recyclers Shooed 1 | 1 . . . Parts Field Recycled . | . . . . Retrieved Matter . | . . . . Parts Self-Destructed 4 | . . 4 . Prevented . | . . . . Kills | -11 -10 -10 -7 ------- Run | Yrd Mat Sub Scr Combat Hostiles Destroyed 3 | . . . 3 Guns 3 | . . . 3 Classes Destroyed 4 | 2 . . 2 Tunneler 2 | 2 . . . Recycler 1 | 1 . . . Bolteater 1 | . . . 1 Scrapper 2 | . . . 2 Best Kill Streak 3 | 3 . . 1 Combat Bots Only 1 | . . . 1 Max Kills in Single Turn 1 | 1 . . 1 Gunslinging . | . . . . Exploded . | . . . . Melee . | . . . . Uniques/NPCs Destroyed . | . . . . Combat | -11 -10 -10 -7 -------- Run | Yrd Mat Sub Scr Hostile Shots Fired 90 | . . . 90 Missed 19 | . . . 19 Hits 71 | . . . 71 Melee 12 | . . . 12 Projectile 59 | . . . 59 Critical Strikes 3 | . . . 3 Damage Taken 799 | . . 9 790 Core 254 | . . . 254 Absorbed by Shields . | . . . . Core Remaining (%) 100 | 100 . . . Volleys Fired 39 | 5 1 2 31 Largest 2 | 2 2 1 2 Hottest 80 | 60 60 20 80 Shots Fired 56 | 10 2 2 42 Gun 56 | 10 2 2 42 Cannon . | . . . . Launcher . | . . . . Special . | . . . . Kinetic 20 | 5 1 2 12 Thermal 17 | 5 1 . 11 Explosive . | . . . . Electromagnetic 19 | . . . 19 Robot Hit Streak 7 | 3 . . 7 Robot Miss Streak 4 | 2 2 4 3 Penetration Max . | . . . . Secondary Targets . | . . . . Shots Hit Robots 35 | 6 . . 29 Core Hits 11 | 4 . . 7 Critical Kills . | . . . . Critical Parts Destroyed . | . . . . Critical Strikes . | . . . . Melee Attacks . | . . . . Impact . | . . . . Slashing . | . . . . Piercing . | . . . . Sneak Attacks . | . . . . Combat Hostiles . | . . . . Follow-up Attacks . | . . . . Damage Inflicted 422 | 76 . . 346 Guns 418 | 76 . . 342 Cannons . | . . . . Explosions . | . . . . Melee . | . . . . Ramming 4 | . . . 4 Kinetic 187 | 55 . . 132 Thermal 100 | 21 . . 79 Explosive . | . . . . Electromagnetic 131 | . . . 131 Impact . | . . . . Slashing . | . . . . Piercing . | . . . . Highest Corruption 1 | . . . 1 Average Corruption 1 | . . . 1 Corruption Purged . | . . . . Corruption Blocked . | . . . . Effects 3 | . . . 3 Message Errors 2 | . . . 2 Matter Fused 1 | . . . 1 Overload Shots . | . . . . Overflow Damage . | . . . . Projectiles . | . . . . Explosions . | . . . . Melee . | . . . . Knockbacks . | . . . . Impact . | . . . . Kinetic . | . . . . Secondary . | . . . . Self-Inflicted Damage 2 | . . . 2 Shots . | . . . . Rammed 1 | . . . 1 Targets Rammed 1 | . . . 1 Kicked . | . . . . Crushed . | . . . . Highest Temperature 233 | . . . 233 Average Temperature 100 | . . . 100 Received Heat Transfer 423 | . . 6 417 Siege Activations . | . . . . Martial Activations . | . . . . Shielding Activations . | . . . . Robots Disrupted . | . . . . Combat Hostiles . | . . . . Robots Corrupted . | . . . . Combat Hostiles . | . . . . Parts Fried 1 | . . . 1 Impact Corruptions . | . . . . Robots Melted . | . . . . Combat Hostiles . | . . . . Parts Melted . | . . . . Heat Transferred 210 | 50 . . 160 Parts Sabotaged . | . . . . Parts Stolen 2 | . . . 2 Parts Stripped . | . . . . Power Chain Reactions . | . . . . Alert | -11 -10 -10 -7 ------- Run | Yrd Mat Sub Scr Maximum Alert Level . | . . . . Low Security (%) 100 | 100 100 . . Level 1 . | . . . . Level 2 . | . . . . Level 3 . | . . . . Level 4 . | . . . . Level 5 . | . . . . High Security . | . . . . Max Security . | . . . . Peak Influence 10 | 10 . . . Initial . | . . . . Average . | 1 . . . Influence Increases 15 | 15 . . . Destroy 0b10 Robot/NC 15 | 15 . . . Influence Decreases 15 | 15 . . . Time Decay 15 | 15 . . . Squads Dispatched . | . . . . Investigation . | . . . . Extermination . | . . . . Reinforcement . | . . . . Assault . | . . . . Garrison . | . . . . Intercept . | . . . . Searches Triggered . | . . . . Construction Impeded . | . . . . Haulers Reinforced . | . . . . Active Scanning Responses . | . . . . Cargo Convoy Interrupts . | . . . . Stealth | -11 -10 -10 -7 --------- Run | Yrd Mat Sub Scr Distress Signals . | . . . . Communications Jammed . | . . . . Distress Signals . | . . . . Times Spotted 15 | . 1 1 13 Peak Tracking Total 3 | . 1 1 3 Tactical Retreats . | . . . . Traps | -11 -10 -10 -7 ------- Run | Yrd Mat Sub Scr Traps Triggered . | . . . . Indirectly . | . . . . Trap Hack Attempts . | . . . . Triggered . | . . . . Disarmed . | . . . . Reprogrammed . | . . . . Reused . | . . . . Traps Extracted . | . . . . Installed . | . . . . Triggered . | . . . . Machines | -11 -10 -10 -7 ---------- Run | Yrd Mat Sub Scr Machines Disabled . | . . . . Max in Single Turn . | . . . . Machines Repaired . | . . . . Machines Dismantled . | . . . . Machines Sabotaged . | . . . . Overloaded Fab Kills . | . . . . Hacking | -11 -10 -10 -7 --------- Run | Yrd Mat Sub Scr Machines Accessed 4 | . 1 . 3 Terminals 1 | . 1 . . Fabricators . | . . . . Repair Stations . | . . . . Recycling Units . | . . . . Scanalyzers . | . . . . Garrison Access . | . . . . Total Hacks 28 | . 3 . 25 Successful 26 | . 1 . 25 Failed 2 | . 2 . . Catastrophic 2 | . 2 . . Database Lockouts . | . . . . Manual 2 | . 2 . . Terminals 3 | . 3 . . Fabricators . | . . . . Repair Stations . | . . . . Recycling Units . | . . . . Scanalyzers . | . . . . Garrison Access . | . . . . Terminal Hacks 26 | . 1 . 25 Record 25 | . . . 25 Locate Traps 1 | . 1 . . Fabricator Hacks . | . . . . Repair Station Hacks . | . . . . Recycling Unit Hacks . | . . . . Scanalyzer . | . . . . Garrison Access Hacks . | . . . . Unauthorized Hacks . | . . . . Terminals . | . . . . Fabricators . | . . . . Repair Stations . | . . . . Recycling Units . | . . . . Scanalyzers . | . . . . Garrison Access . | . . . . Data Cores Recovered . | . . . . Used . | . . . . Hacking Detections 1 | . 1 . . Full Trace Events . | . . . . Feedback Events . | . . . . Feedback Blocked . | . . . . Robot Schematics Acquired . | . . . . Robots Built . | . . . . Authchips . | . . . . Time . | . . . . Total Robot Build Rating . | . . . . Part Schematics Acquired . | . . . . Parts Built . | . . . . Authchips . | . . . . Time . | . . . . Total Part Build Rating . | . . . . Parts Repaired . | . . . . Time . | . . . . Parts Recycled . | . . . . Recycled Matter . | . . . . Retrieved Matter . | . . . . Retrieved Components . | . . . . Parts Scanalyzed . | . . . . Part Schematics Acquired . | . . . . Parts Damaged . | . . . . Bothacking | -11 -10 -10 -7 ------------ Run | Yrd Mat Sub Scr Used RIF Installer . | . . . . Robots Hacked . | . . . . Non-combat . | . . . . Combat . | . . . . Robot Hacks Applied . | . . . . Relay Couplers Released . | . . . . Fabnet Peak Effective % . | . . . . Robots Rewired . | . . . . Allies Hacked . | . . . . Hacks Repelled . | . . . . Allies | -11 -10 -10 -7 -------- Run | Yrd Mat Sub Scr Total Allies . | . . . . Largest Group . | . . . . Highest-Rated Group . | . . . . Highest-Rated Ally . | . . . . Total Orders . | . . . . Ally Attacks . | . . . . Total Damage . | . . . . Kills . | . . . . Allies Corrupted . | . . . . Allies Melted 3 | . . . 3 Intel | -11 -10 -10 -7 ------- Run | Yrd Mat Sub Scr Active Infowar (turns) 1122 | 11 76 105 930 Seismic 1122 | 11 76 105 930 Robot Analysis Total . | . . . . Derelict Logs Recovered 1 | . . 1 . Drone Launches . | . . . . Drone Recoveries . | . . . . Exploration | -11 -10 -10 -7 ------------- Run | Yrd Mat Sub Scr Turns Passed 1198 | 83 76 105 934 Spaces Moved 1036 | 51 69 83 833 Core 1 | 1 . . . Treads . | . . . . Legs . | . . . . Wheels 1035 | 50 69 83 833 Hover . | . . . . Flight . | . . . . Fastest Speed 50 | 50 100 100 90 Average Speed 99 | 99 100 100 99 Slowest Speed 100 | 100 100 100 100 Overloaded Moves . | . . . . Propulsion Burnouts . | . . . . Robots Hopped . | . . . . Potential Cave-ins . | . . . . Cave-ins Triggered . | . . . . Exploration Rate (%) 24 | 4 10 11 74 Regions Visited 3 Branch Regions 2 Pre-discovered Areas . | . . . . Known Exits Taken . | . . . . Unknown Exits Taken 3 | 1 1 1 . Scrap Searched 2 | . . . 2 Spaces Dug . | . . . . Terrain Destroyed . | . . . . Melee . | . . . . Projectile . | . . . . AOE . | . . . . Terrain Rammed . | . . . . Walls Destroyed . | . . . . Machines Disabled . | . . . . Actions | -11 -10 -10 -7 --------- Run | Yrd Mat Sub Scr Total 1142 | 70 74 103 895 Wait 34 | . 5 19 10 Move 1033 | 50 68 82 833 Hop . | . . . . Pick Up 14 | 8 . . 6 Fast Attach 8 | 7 . . 1 Attach 5 | . . . 5 Detach . | . . . . Swap 3 | . . . 3 Drop 5 | . . . 5 Fire 39 | 5 1 2 31 Melee . | . . . . Ram 1 | . . . 1 Kick . | . . . . Crush . | . . . . Escape Stasis . | . . . . Rewire . | . . . . Trap . | . . . . Miscellaneous . | . . . . Route ------- -11/Scrapyard -10/Materials -10/Subcaves -7/Scraptown (discovered 2 exits: *Fac x2) History --------- Turn | Location | Event 15 | -11/Scrapyard | Discovered new exit (range 15) 84 | -11/Scrapyard | Entered Materials 85 | -10/Materials | Met a group of wandering Federalists 158 | -10/Materials | Discovered new exit (range 3) 160 | -10/Materials | Entered Subcaves 160 | -10/Subcaves | Accompanied by 2 allies 161 | -10/Subcaves | Continued accompanying wandering Federalists (6) 161 | -10/Subcaves | Approached by a straggling Scientist 250 | -10/Subcaves | Scientist uncovered a shortcut to Scraptown 265 | -10/Subcaves | Entered Scraptown 303 | -7/Scraptown | Build established: Mutant 418 | -7/Scraptown | Discovered new exit (range 7) 508 | -7/Scraptown | Visited Spacefarers 592 | -7/Scraptown | Visited UFD Registry 594 | -7/Scraptown | Registered with UFD as "Pulsecore" 634 | -7/Scraptown | Visited Science Testing Area 664 | -7/Scraptown | Visited Junk Repository 694 | -7/Scraptown | Visited Junk Repository 904 | -7/Scraptown | Met Optimus 904 | -7/Scraptown | Accepted into 0bPrime 959 | -7/Scraptown | Visited Research Penetration Think Tank 980 | -7/Scraptown | Visited Infowarlord's Domain 995 | -7/Scraptown | Civil war broke out across Scraptown 1069 | -7/Scraptown | Identified exit to Factory 1099 | -7/Scraptown | Visited Abandonware Association 1148 | -7/Scraptown | Core integrity fell below 50% 1150 | -7/Scraptown | Optimus destroyed in the chaos of civil war 1163 | -7/Scraptown | Core integrity fell below 20% 1199 | -7/Scraptown | Destroyed by H0-H4M(g) with Salvaging Laser Last Messages --------------- Acquired 30 matter. Supplies damaged. IX-WDY(j) destroyed. YX-VPG(E) heat damages Target Analyzer. >G&MZJSGG4>,I8AQIPBIDXKCC6ZJS 43-0QT(j) heat damages Scrap Suit. YX-VPG(E) destroyed. 43-0QT(j) cannibalizes Lgt. Deuterium Engine to repair Lgt. Deuterium Engine. EM Pulse Gun destroyed. Lgt. Ion Engine destroyed. Critical hit (Burn: +50). 43-0QT(j) cannibalizes Trap Scanner to repair Mak. Microdissipator Network. Seismic Detector destroyed. Critical hit (Burn: +50). Com. Wheel destroyed. Slammed into 43-0QT(j). 43-0QT(j) cannibalizes Ovr. Pulse Rifle to repair Ovr. Pulse Rifle. Com. Wheel destroyed. Map ----- +----------------------------------------------------+ | | | | | | | | | | | | | | | | | ?????????????????????????????????????????????????? | | ?????????????????????????????????????????????????? | | ?????????????????????????????????????????????????? | | ?????????????????????????????????????????????????? | | ?????????????????????????????????????????????????? | | ?????????????????????????????????????????????????? | | ?????????????????????????????????????????????????? | | ?????????????????????????????????????????????????? | | ?????????????????????????????????????????????????? | | ?????????????????????????????????????????????????? | | ?????????????????????????????????????????????????? | | ?????????????????????????????????????????????????? | | ?????????????????????????????????????????????????? | | ?????????????????????####????????????????????????? | | ????????????##"?????##%!##??????